bitfinex/quotes_SOLUSD_20250212
["timestamp","ask_amount","ask_price","bid_price","bid_amount"]
[1739388405842,82.33,192.87,192.81,36.15880796]
[1739388406645,82.33,192.87,192.82,16.15880796]
[1739388406846,82.33,192.87,192.81,41.34520796]
[1739388408649,82.33,192.87,192.82,16.15880796]
[1739388409246,82.33,192.87,192.83,16.15880796]
[1739388409868,0.03,192.87,192.86,16.15880796]
[1739388410217,0.03,192.87,192.85,16.15880796]
[1739388410423,0.03,192.87,192.81,21.34520796]
[1739388410766,0.03,192.87,192.83,16.15880796]
[1739388411250,0.03,192.87,192.84,16.15880796]
[1739388412724,0.03,192.87,192.85,16.15880796]
[1739388413825,0.03,192.87,192.86,16.15880796]
[1739388416161,0.03,192.87,192.86,22.4325255]
[1739388416334,0.03,192.87,192.86,22.6835055]
[1739388416543,0.03,192.87,192.86,21.59488796]
[1739388417756,0.03,192.87,192.86,22.4324237]
[1739388417927,0.03,192.87,192.86,37.22074223]
[1739388420255,1.5255,193.0,192.9,0.25098]
[1739388420446,22.39360796,193.04,192.97,16.15880796]
[1739388420749,16.28429796,193.03,192.96,16.15880796]
[1739388420940,16.15880796,193.01,192.94,16.15880796]
[1739388421540,16.28429796,193.02,192.95,16.15880796]
[1739388421739,22.39360796,193.04,192.97,16.15880796]
[1739388421944,16.15880796,193.03,192.96,16.15880796]
[1739388424552,16.15880796,193.03,192.91,0.25098]
[1739388424553,0.12549,193.03,192.97,16.15880796]
[1739388425135,6.2348,193.04,192.98,16.15880796]
[1739388425947,16.15880796,193.03,192.97,16.15880796]
[1739388427151,16.15880796,193.02,192.96,5.1821]
[1739388427751,16.15880796,193.0,192.94,5.1827]
[1739388428153,16.15880796,193.01,192.94,21.34150796]
[1739388429446,16.15880796,193.0,192.93,16.15880796]
[1739388429664,16.15880796,193.01,192.94,16.15880796]
[1739388430167,16.15880796,193.02,192.95,16.15880796]
[1739388430550,16.15880796,193.02,192.91,6.27185031]
[1739388430551,16.15880796,193.01,192.94,36.15880796]
[1739388431064,0.12549,193.01,192.95,16.15880796]
[1739388431851,0.03,193.02,192.96,16.15880796]
[1739388432059,0.03,193.02,192.98,16.15880796]
[1739388432258,0.03,193.02,192.99,16.15880796]
[1739388432568,0.03,193.02,192.94,6.27094209]
[1739388432569,0.03,193.02,193.0,16.15880796]
[1739388433067,0.03,193.02,193.01,16.15880796]
[1739388433641,0.03,193.02,193.01,10.3183925]
[1739388434245,0.03,193.02,193.01,15.4993925]
[1739388435776,0.03,193.02,193.01,16.12044998]
[1739388435968,0.03,193.02,193.01,17.20808031]
[1739388436276,0.03,193.02,193.01,16.12044998]
[1739388436444,0.03,193.02,193.01,18.02232998]
[1739388436946,0.03,193.02,193.01,23.20332998]
[1739388437549,0.03,193.02,193.01,36.74066851]
[1739388437769,0.03,193.02,193.01,37.74066851]
[1739388439352,0.03,193.02,193.01,36.74066851]
[1739388439551,0.03,193.02,193.01,37.74066851]
[1739388440278,0.03,193.02,193.01,36.74066851]
[1739388440676,0.03,193.02,193.01,37.74066851]
[1739388440872,0.03,193.02,193.01,36.74066851]
[1739388441474,0.03,193.02,193.01,37.74066851]
[1739388445685,0.03,193.02,193.01,38.74066851]
[1739388446373,0.03,193.02,193.01,38.86615851]
[1739388446579,0.03,193.07,193.06,16.12044998]
[1739388446985,0.03,193.07,193.06,29.90876851]
[1739388447986,0.03,193.07,193.06,35.08846851]
[1739388448349,0.03,193.07,193.06,37.08846851]
[1739388448555,0.03,193.07,193.06,38.17566803]
[1739388450479,0.03,193.07,193.06,37.17566803]
[1739388450785,0.03,193.07,193.06,38.17566803]
[1739388453185,0.0001,193.07,193.06,38.30115803]
[1739388455560,0.03,193.1,193.09,20.0]
[1739388455792,0.03,193.14,193.09,20.0]
[1739388455793,0.03,193.14,193.13,20.0]
[1739388455963,0.03,193.14,193.13,36.12044998]
[1739388456384,0.03,193.14,193.13,50.99575175]
[1739388456684,0.03,193.14,193.13,51.99575175]
[1739388456886,6.4718,193.24,193.13,39.33292322]
[1739388457088,6.4718,193.24,193.21,16.12044998]
[1739388457302,0.03,193.24,193.21,16.12044998]
[1739388457658,0.03,193.24,193.21,10.29738618]
[1739388457855,0.03,193.24,193.2,10.29738618]
[1739388458054,0.03,193.24,193.21,30.29738618]
[1739388459372,10.32738618,193.24,193.17,10.29738618]
[1739388459693,0.03,193.24,193.19,30.29738618]
[1739388460990,10.32738618,193.24,193.17,10.29738618]
[1739388462697,10.29738618,193.23,193.16,10.29738618]
[1739388463471,10.29738618,193.2,193.14,15.47468618]
[1739388464982,10.29738618,193.2,193.13,15.47518618]
[1739388465695,10.29738618,193.18,193.11,15.47558618]
[1739388465902,10.29738618,193.19,193.14,20.0]
[1739388466883,10.29738618,193.18,193.11,10.29738618]
[1739388467084,10.29738618,193.13,193.09,31.57556334]
[1739388467484,10.29738618,193.14,193.09,31.57556334]
[1739388467697,10.29738618,193.15,193.09,31.57556334]
[1739388468006,82.3,193.19,193.13,10.29738618]
[1739388468302,82.3,193.19,193.09,36.75436334]
[1739388468303,10.29738618,193.19,193.12,10.29738618]
[1739388468676,10.29738618,193.18,193.12,10.29738618]
[1739388468880,10.29738618,193.18,193.11,10.29738618]
[1739388470101,10.29738618,193.19,193.12,15.47538618]
[1739388470690,10.29738618,193.16,193.1,5.1785]
[1739388471010,10.29738618,193.15,193.09,31.57556334]
[1739388471202,49.42973472,193.2,193.09,41.87294952]
[1739388471203,10.29738618,193.16,193.09,41.87294952]
[1739388472099,10.29738618,193.17,193.1,10.29738618]
[1739388473184,10.29738618,193.18,193.11,10.29738618]
[1739388476205,10.29738618,193.17,193.11,10.29738618]
[1739388477582,10.29738618,193.18,193.11,10.29738618]
[1739388477787,8.1147,193.2,193.14,10.29738618]
[1739388477788,1.5453,193.2,193.14,10.29738618]
[1739388477980,0.03,193.2,193.15,10.29738618]
[1739388478581,0.03,193.2,193.16,10.29738618]
[1739388478782,0.03,193.2,193.15,10.29738618]
[1739388479210,0.03,193.2,193.16,10.29738618]
[1739388479389,0.03,193.2,193.15,10.29738618]
[1739388479710,0.03,193.2,193.16,10.29738618]
[1739388480278,0.03,193.2,193.15,15.47468618]
[1739388480502,0.03,193.2,193.15,5.1773]
[1739388480708,10.32738618,193.2,193.14,5.1775]
[1739388482016,10.29738618,193.19,193.13,20.0]
[1739388483115,10.32738618,193.2,193.13,30.29738618]
[1739388484090,0.03,193.2,193.16,10.29738618]
[1739388484299,0.03,193.2,193.18,10.29738618]
[1739388484789,0.03,193.2,193.15,10.29738618]
[1739388485087,0.03,193.2,193.14,10.29738618]
[1739388485325,10.32738618,193.2,193.13,48.88703471]
[1739388486303,0.03,193.2,193.14,15.47478618]
[1739388487210,10.32738618,193.2,193.14,5.1774]
[1739388487412,10.32738618,193.2,193.14,15.47478618]
[1739388487413,0.03,193.2,193.14,15.47478618]
[1739388488112,0.03,193.2,193.14,10.29738618]
[1739388488315,10.32738618,193.2,193.13,35.47508618]
[1739388488696,10.29738618,193.19,193.13,25.1777]
[1739388489220,10.32738618,193.2,193.13,35.47508618]
[1739388489384,0.03,193.2,193.15,5.1773]
[1739388489593,0.03,193.2,193.15,15.47468618]
[1739388489798,0.03,193.2,193.18,10.29738618]
[1739388490190,0.03,193.2,193.19,10.29738618]
[1739388492023,0.03,193.2,193.19,15.47358618]
[1739388492723,0.03,193.2,193.19,28.88543471]
[1739388493600,0.03,193.2,193.19,30.2230138]
[1739388494827,0.03,193.2,193.19,30.3485038]
[1739388495034,0.03,193.2,193.19,31.4739938]
[1739388495224,0.03,193.2,193.19,30.4739938]
[1739388495405,0.03,193.2,193.19,30.3485038]
[1739388496310,0.03,193.2,193.19,31.4739938]
[1739388496511,0.03,193.2,193.19,30.4739938]
[1739388496703,0.03,193.2,193.19,30.3485038]
[1739388497028,0.03,193.2,193.19,31.4739938]
[1739388497224,0.03,193.2,193.19,72.66353852]
[1739388497546,0.03,193.2,193.19,73.66353852]
[1739388498511,0.03,193.2,193.19,72.66353852]
[1739388498927,0.03,193.2,193.19,73.66353852]
[1739388499226,0.03,193.2,193.19,72.66353852]
[1739388499431,0.03,193.2,193.19,30.3485038]
[1739388499729,0.03,193.2,193.19,28.88543471]
[1739388501725,0.03,193.2,193.17,10.29738618]
[1739388501924,0.03,193.2,193.15,10.29738618]
[1739388502515,0.03,193.2,193.16,10.29738618]
[1739388503032,0.03,193.2,193.15,10.29738618]
[1739388503328,0.03,193.2,193.16,10.29738618]
[1739388503705,0.03,193.2,193.17,20.0]
[1739388504416,10.29738618,193.19,193.16,0.063]
[1739388504905,10.32738618,193.2,193.16,0.063]
[1739388505724,0.03,193.2,193.16,0.063]
[1739388507328,0.03,193.2,193.16,10.36038618]
[1739388508031,0.03,193.2,193.16,0.063]
[1739388508229,0.03,193.2,193.16,10.36038618]
[1739388509436,0.03,193.2,193.16,15.53728618]
[1739388509639,0.03,193.2,193.17,13.41184853]
[1739388510209,0.03,193.2,193.19,43.70923471]
[1739388510413,0.03,193.2,193.19,24.08570471]
[1739388510628,0.03,193.2,193.19,25.08570471]
[1739388510830,0.03,193.2,193.19,26.21119471]
[1739388511238,0.03,193.2,193.19,67.40073943]
[1739388511424,0.03,193.2,193.19,66.40073943]
[1739388511627,0.03,193.2,193.19,53.25996225]
[1739388511931,0.03,193.2,193.19,52.3464419]
[1739388512240,0.03,193.2,193.19,36.26146504]
[1739388512940,0.03,193.2,193.19,36.13597504]
[1739388515138,0.03,193.2,193.19,34.67302539]
[1739388515324,0.03,193.2,193.18,16.08497686]
[1739388517452,0.03,193.2,193.19,16.08497686]
[1739388517921,0.03,193.2,193.19,29.49682539]
[1739388518940,0.03,193.2,193.19,36.01070194]
[1739388519146,0.03,193.2,193.19,36.13619194]
[1739388520545,0.03,193.2,193.19,54.3466588]
[1739388521241,0.03,193.28,193.23,20.0]
[1739388521442,0.03,193.28,193.27,16.08497686]
[1739388522065,0.03,193.28,193.27,29.49682539]
[1739388523044,0.03,193.28,193.27,34.92190539]
[1739388524935,0.03,193.28,193.27,35.04739539]
[1739388525236,0.03,193.28,193.27,36.25894294]
[1739388526150,0.03,193.28,193.27,36.00796294]
[1739388526953,0.03,193.28,193.27,34.67092539]
[1739388532654,0.03,193.28,193.27,34.92190539]
[1739388537866,0.03,193.28,193.27,35.04739539]
[1739388538363,0.03,193.28,193.27,36.13344513]
[1739388540661,0.03,193.28,193.27,34.67092539]
[1739388541659,0.03,193.28,193.27,28.87685511]
[1739388543065,0.03,193.28,193.27,10.29090658]
[1739388543362,0.03,193.28,193.26,10.29090658]
[1739388543756,0.03,193.28,193.26,16.08282898]
[1739388543960,0.03,193.28,193.27,36.08282898]
[1739388544150,0.03,193.28,193.27,49.49467751]
[1739388544967,0.03,193.28,193.27,20.0]
[1739388545355,0.03,193.28,193.23,21.25792898]
[1739388545756,0.03,193.28,193.24,16.08282898]
[1739388547278,0.03,193.28,193.23,16.08282898]
[1739388547464,0.03,193.28,193.24,16.08282898]
[1739388548100,0.03,193.28,193.26,16.08282898]
[1739388548621,0.03,193.28,193.27,16.08282898]
[1739388549811,0.03,193.28,193.26,16.08282898]
[1739388549999,0.03,193.28,193.24,5.1746]
[1739388550400,16.11282898,193.28,193.22,34.66987751]
[1739388550602,16.11282898,193.28,193.22,21.25802898]
[1739388550812,16.11282898,193.28,193.21,21.25842898]
[1739388550813,16.08282898,193.27,193.21,21.25842898]
[1739388550997,16.08282898,193.26,193.21,5.1756]
[1739388551385,16.08282898,193.25,193.2,0.063]
[1739388551590,16.08282898,193.26,193.2,0.063]
[1739388552524,16.08282898,193.26,193.2,16.14582898]
[1739388554407,1.583,193.27,193.23,16.08282898]
[1739388554718,0.03,193.28,193.25,16.08282898]
[1739388554903,0.03,193.28,193.27,16.08282898]
[1739388555212,0.03,193.28,193.27,29.49467751]
[1739388555599,0.03,193.28,193.27,16.08282898]
[1739388557906,0.03,193.28,193.25,5.1746]
[1739388558297,0.03,193.28,193.26,16.08282898]
[1739388560006,0.03,193.28,193.25,21.25742898]
[1739388560706,16.08282898,193.27,193.2,16.14582898]
[1739388560905,16.08282898,193.25,193.2,0.063]
[1739388561215,16.08282898,193.24,193.2,0.063]
[1739388561407,16.08282898,193.25,193.2,0.063]
[1739388561714,16.08282898,193.24,193.2,0.063]
[1739388562100,16.08282898,193.22,193.2,0.063]
[1739388563098,16.08282898,193.21,193.2,0.063]
[1739388564895,16.0496028,193.21,193.2,0.063]
[1739388565096,16.08282898,193.21,193.2,0.063]
[1739388565920,16.08282898,193.22,193.2,0.063]
[1739388567714,16.08282898,193.23,193.2,0.063]
[1739388567917,16.08282898,193.25,193.2,0.063]
[1739388568221,1.6344,193.27,193.21,16.08282898]
[1739388568406,1.6344,193.27,193.22,16.08282898]
[1739388569310,17.71722898,193.27,193.2,16.14582898]
[1739388569513,16.08282898,193.26,193.2,16.14582898]
[1739388572410,16.08282898,193.24,193.2,0.063]
[1739388575630,16.08282898,193.25,193.2,0.063]
[1739388575817,16.08282898,193.24,193.2,0.063]
[1739388576220,16.08282898,193.23,193.2,0.063]
[1739388577842,98.38282898,193.26,193.2,16.14582898]
[1739388581439,98.38282898,193.26,193.2,0.063]
[1739388582724,98.38282898,193.26,193.2,16.14582898]
[1739388584523,98.38282898,193.26,193.2,0.063]
[1739388584843,98.38282898,193.26,193.2,16.14582898]
[1739388585046,82.3,193.26,193.2,16.14582898]
[1739388586533,82.3,193.26,193.21,16.08282898]
[1739388587139,82.33,193.26,193.21,16.08282898]
[1739388588240,82.33,193.26,193.2,16.14582898]
[1739388589051,82.33,193.26,193.21,16.08282898]
[1739388591150,82.33,193.26,193.22,16.08282898]
[1739388592632,82.33,193.26,193.23,16.08282898]
[1739388593734,82.33,193.26,193.23,10.29701094]
[1739388595248,82.33,193.26,193.22,10.29701094]
[1739388596036,92.62701094,193.26,193.2,0.063]
[1739388596239,82.33,193.26,193.2,10.36001094]
[1739388596444,92.62701094,193.26,193.2,0.063]
[1739388598031,82.33,193.26,193.2,10.36001094]
[1739388598241,82.33,193.26,193.21,10.29701094]
[1739388598438,10.42250094,193.22,193.17,0.063]
[1739388598657,10.29701094,193.18,193.17,0.063]
[1739388600349,10.29701094,193.21,193.17,0.063]
[1739388601643,82.3,193.25,193.19,16.10231566]
[1739388601967,0.03,193.26,193.23,16.10231566]
[1739388602149,0.03,193.26,193.18,13.41184853]
[1739388602779,0.03,193.26,193.25,16.10231566]
[1739388605180,0.03,193.26,193.25,36.02618354]
[1739388605380,0.03,193.26,193.25,37.27716354]
[1739388605558,0.03,193.26,193.25,36.27716354]
[1739388605889,0.03,193.26,193.25,36.15167354]
[1739388606043,0.03,193.26,193.25,34.68876419]
[1739388606355,0.03,193.26,193.25,34.93974419]
[1739388606558,0.03,193.26,193.25,34.68876419]
[1739388607551,0.03,193.26,193.23,16.10231566]
[1739388608159,0.03,193.26,193.24,16.10231566]
[1739388608481,0.03,193.26,193.25,50.85160276]
[1739388608659,0.03,193.26,193.25,50.97709276]
[1739388609453,0.03,193.26,193.25,49.51416419]
[1739388609689,0.03,193.26,193.24,16.10231566]
[1739388610060,0.03,193.26,193.22,5.1754]
[1739388610288,16.13231566,193.26,193.19,16.10231566]
[1739388610476,16.10231566,193.25,193.19,16.10231566]
[1739388610791,16.10231566,193.25,193.17,0.063]
[1739388610792,16.10231566,193.23,193.17,21.34201566]
[1739388610995,16.10231566,193.23,193.17,5.2397]
[1739388611480,16.10231566,193.23,193.17,21.34201566]
[1739388611679,0.03,193.26,193.2,16.10231566]
[1739388611880,0.03,193.26,193.25,13.41184853]
[1739388612088,0.03,193.26,193.25,29.51416419]
[1739388612291,0.03,193.26,193.24,16.10231566]
[1739388612492,0.03,193.26,193.21,20.0]
[1739388612662,0.03,193.26,193.22,29.51416419]
[1739388613293,0.03,193.26,193.22,34.68956419]
[1739388613472,0.03,193.26,193.21,41.27791566]
[1739388613673,0.03,193.26,193.19,21.27841566]
[1739388613674,16.13231566,193.26,193.19,21.27841566]
[1739388613992,16.13231566,193.26,193.2,13.41184853]
[1739388614899,16.13231566,193.26,193.2,29.51416419]
[1739388615393,0.03,193.26,193.2,29.51416419]
[1739388616097,0.03,193.26,193.21,16.10231566]
[1739388616885,0.03,193.26,193.2,13.41184853]
[1739388617086,0.03,193.26,193.25,16.10231566]
[1739388618268,0.03,193.26,193.23,16.10231566]
[1739388618469,0.03,193.26,193.24,16.10231566]
[1739388619280,0.03,193.26,193.23,16.10231566]
[1739388621594,0.03,193.26,193.24,16.10231566]
[1739388622268,0.03,193.26,193.25,16.10231566]
[1739388622577,0.03,193.26,193.24,16.10231566]
[1739388623584,0.03,193.26,193.21,16.10231566]
[1739388623788,0.03,193.26,193.2,36.10231566]
[1739388624263,16.10231566,193.25,193.2,20.0]
[1739388624592,16.10231566,193.21,193.17,0.063]
[1739388624799,16.10231566,193.2,193.17,0.063]
[1739388625105,16.10231566,193.18,193.17,0.063]
[1739388626184,16.22780566,193.18,193.17,0.063]
[1739388626372,23.58630566,193.18,193.17,0.063]
[1739388626797,23.96277566,193.18,193.17,0.0001]
[1739388626987,6.3585,193.18,193.17,0.0001]
[1739388627190,16.10231566,193.19,193.17,0.0001]
[1739388627376,16.10231566,193.2,193.17,0.0001]
[1739388628098,16.10231566,193.19,193.17,0.0001]
[1739388628695,16.10231566,193.19,193.17,0.0001]
[1739388629001,16.22780566,193.18,193.17,0.0001]
[1739388629299,17.22780566,193.18,193.17,0.0001]
[1739388632797,16.22780566,193.18,193.17,0.0001]
[1739388633502,0.25098,193.17,193.14,0.063]
[1739388633794,16.22780566,193.15,193.14,0.063]
[1739388635077,16.22780566,193.15,193.14,0.0001]
[1739388635790,16.35329566,193.15,193.14,0.0001]
[1739388635997,17.35329566,193.15,193.14,0.0001]
[1739388636169,16.22780566,193.15,193.14,0.0001]
[1739388636377,16.10231566,193.17,193.14,0.0001]
[1739388636575,16.10231566,193.2,193.14,0.0001]
[1739388637593,16.10231566,193.17,193.14,0.0001]
[1739388637796,16.10231566,193.16,193.14,0.0001]
[1739388638774,1.25098,193.21,193.14,0.0001]
[1739388638979,16.10231566,193.16,193.14,0.0001]
[1739388639182,16.10231566,193.15,193.14,0.0001]
[1739388639581,16.22780566,193.15,193.14,0.0001]
[1739388644701,17.35329566,193.15,193.14,0.0001]
[1739388646099,17.60427566,193.15,193.14,0.0001]
[1739388647580,0.03,193.18,193.14,16.10241566]
[1739388647898,0.03,193.18,193.17,16.10231566]
[1739388648700,0.03,193.18,193.17,29.51416419]
[1739388651778,0.03,193.18,193.17,16.10231566]
[1739388651976,0.03,193.18,193.16,16.10231566]
[1739388652177,0.03,193.18,193.15,36.10231566]
[1739388652397,0.03,193.18,193.15,16.10231566]
[1739388652601,0.03,193.18,193.14,16.10241566]
[1739388652805,0.03,193.18,193.15,16.10231566]
[1739388653804,0.03,193.18,193.15,25.7643442]
[1739388654302,0.03,193.18,193.17,25.7643442]
[1739388655187,0.03,193.18,193.17,39.17619273]
[1739388656090,0.03,193.18,193.17,40.51396349]
[1739388656300,0.03,193.18,193.17,47.25626349]
[1739388657409,0.03,193.18,193.17,47.38175349]
[1739388657705,0.03,193.18,193.17,53.50645349]
[1739388658317,0.03,193.26,193.21,20.0]
[1739388658612,0.03,193.26,193.25,25.7643442]
[1739388658786,0.03,193.26,193.24,25.7643442]
[1739388659609,0.03,193.26,193.23,25.7643442]
[1739388659905,0.03,193.26,193.24,25.7643442]
[1739388660606,0.03,193.26,193.22,0.25098]
[1739388660607,0.03,193.26,193.25,39.17619273]
[1739388660781,0.03,193.26,193.25,39.42717273]
[1739388660987,0.03,193.26,193.25,47.66006273]
[1739388661319,0.03,193.26,193.25,48.87177243]
[1739388661796,0.03,193.26,193.25,54.04637243]
[1739388662508,0.03,193.26,193.25,55.04637243]
[1739388662803,0.03,193.28,193.27,33.91380853]
[1739388663010,0.03,193.28,193.27,40.76419521]
[1739388663702,0.03,193.28,193.27,45.93829521]
[1739388664300,0.03,193.28,193.27,45.81280521]
[1739388664511,0.03,193.28,193.27,44.72676273]
[1739388665987,0.03,193.38,193.37,13.53733853]
[1739388666307,11.49833458,193.52,193.42,20.0]
[1739388666498,0.03,193.48,193.43,13.41184853]
[1739388666692,0.03,193.48,193.45,20.0]
[1739388667101,0.03,193.48,193.45,45.7643442]
[1739388667288,0.03,193.48,193.44,25.7643442]
[1739388667611,0.03,193.48,193.45,25.7643442]
[1739388668111,0.03,193.48,193.44,25.7643442]
[1739388669108,0.03,193.48,193.43,25.7643442]
[1739388669285,0.03,193.48,193.42,45.7643442]
[1739388669491,0.03,193.48,193.43,25.7643442]
[1739388669685,0.03,193.48,193.45,25.7643442]
[1739388671104,0.03,193.48,193.45,39.17619273]
[1739388671307,0.03,193.46,193.45,45.80704878]
[1739388671607,0.03,193.48,193.47,0.12549]
[1739388671788,0.03,193.48,193.47,40.63762949]
[1739388672211,0.03,193.48,193.47,66.52746369]
[1739388672413,32.9028442,193.63,193.51,20.25098]
[1739388672606,25.7643442,193.62,193.56,25.7643442]
[1739388673324,6.1385,193.63,193.57,25.7643442]
[1739388673713,27.3540442,193.64,193.57,25.7643442]
[1739388673895,25.7643442,193.63,193.56,25.7643442]
[1739388674097,25.7643442,193.63,193.57,25.7643442]
[1739388674821,32.1293442,193.67,193.6,25.7643442]
[1739388675320,6.365,193.67,193.61,25.7643442]
[1739388675619,25.7643442,193.68,193.61,25.7643442]
[1739388676303,57.4765248,193.69,193.63,25.7643442]
[1739388677220,25.7643442,193.69,193.62,25.7643442]
[1739388677429,25.7643442,193.7,193.64,25.7643442]
[1739388677635,25.7643442,193.72,193.66,25.7643442]
[1739388677992,38.67539588,193.73,193.66,25.7643442]
[1739388678199,25.7643442,193.7,193.63,25.7643442]
[1739388678511,25.7643442,193.69,193.62,25.7643442]
[1739388678704,25.7643442,193.7,193.64,25.7643442]
[1739388679338,25.7643442,193.72,193.65,25.7643442]
[1739388679698,25.7643442,193.71,193.64,25.7643442]
[1739388680410,25.7643442,193.68,193.62,25.7643442]
[1739388680611,25.7643442,193.66,193.59,25.7643442]
[1739388680924,25.7643442,193.67,193.61,25.7643442]
[1739388681229,25.7643442,193.64,193.58,25.7643442]
[1739388681427,25.7643442,193.65,193.58,25.7643442]
[1739388681803,25.7643442,193.65,193.59,25.7643442]
[1739388682330,25.7643442,193.65,193.56,5.1662]
[1739388682331,25.7643442,193.67,193.6,25.7643442]
[1739388682511,25.7643442,193.66,193.59,25.7643442]
[1739388682728,25.7643442,193.64,193.58,25.7643442]
[1739388682932,25.7643442,193.63,193.56,25.7643442]
[1739388683524,25.7643442,193.64,193.57,25.7643442]
[1739388684936,32.1227442,193.66,193.59,25.7643442]
[1739388685141,32.1227442,193.66,193.6,25.7643442]
[1739388685345,25.7643442,193.68,193.61,25.7643442]
[1739388685656,25.7643442,193.67,193.61,25.7643442]
[1739388685843,25.7643442,193.67,193.6,25.7643442]
[1739388686332,25.7643442,193.66,193.6,25.7643442]
[1739388686525,25.7643442,193.65,193.59,25.7643442]
[1739388686846,25.7643442,193.63,193.57,25.7643442]
[1739388687043,25.7643442,193.64,193.57,25.7643442]
[1739388687646,25.7643442,193.64,193.58,25.7643442]
[1739388689645,25.7643442,193.64,193.57,25.7643442]
[1739388689846,25.7643442,193.64,193.58,25.7643442]
[1739388690043,25.7643442,193.67,193.6,25.7643442]
[1739388690347,25.7643442,193.67,193.61,25.7643442]
[1739388690747,25.7643442,193.65,193.59,25.7643442]
[1739388691049,25.7643442,193.65,193.58,45.7643442]
[1739388691347,25.7643442,193.64,193.58,20.0]
[1739388691534,25.7643442,193.63,193.58,20.0]
[1739388691735,25.7643442,193.62,193.55,25.7643442]
[1739388692130,25.7643442,193.62,193.56,25.7643442]
[1739388692331,25.7643442,193.66,193.59,25.7643442]
[1739388692645,25.7643442,193.66,193.6,25.7643442]
[1739388693354,25.7643442,193.64,193.58,25.7643442]
[1739388693525,25.7643442,193.62,193.55,25.7643442]
[1739388693725,25.7643442,193.61,193.54,30.9309442]
[1739388694043,25.7643442,193.58,193.52,30.9315442]
[1739388694361,25.7643442,193.57,193.51,50.01707532]
[1739388694652,25.7643442,193.52,193.48,0.063]
[1739388694846,25.7643442,193.54,193.48,0.063]
[1739388695043,25.7643442,193.53,193.48,0.063]
[1739388695423,25.7643442,193.55,193.49,25.7643442]
[1739388695652,25.7643442,193.55,193.48,25.8273442]
[1739388695946,25.7643442,193.55,193.49,25.7643442]
[1739388696152,25.7643442,193.56,193.49,25.7643442]
[1739388696336,25.7643442,193.55,193.48,25.8273442]
[1739388696739,25.7643442,193.56,193.5,25.7643442]
[1739388696957,25.7643442,193.57,193.5,25.7643442]
[1739388697131,25.7643442,193.56,193.49,25.7643442]
[1739388698070,25.7643442,193.58,193.51,25.7643442]
[1739388698273,25.7643442,193.6,193.54,25.7643442]
[1739388698570,25.7643442,193.59,193.52,25.7643442]
[1739388698939,25.7643442,193.58,193.51,25.7643442]
[1739388699169,25.7643442,193.59,193.52,25.7643442]
[1739388701773,25.7643442,193.57,193.5,25.7643442]
[1739388701948,25.7643442,193.56,193.49,25.7643442]
[1739388702372,25.7643442,193.57,193.5,25.7643442]
[1739388703368,0.12549,193.6,193.51,25.7643442]
[1739388703369,25.7643442,193.58,193.51,25.7643442]
[1739388703547,25.7643442,193.57,193.5,25.7643442]
[1739388703743,25.7643442,193.56,193.49,45.7643442]
[1739388703986,25.7643442,193.58,193.52,25.7643442]
[1739388704154,108.0643442,193.61,193.54,25.7643442]
[1739388704779,82.3,193.61,193.56,25.7643442]
[1739388704963,25.7643442,193.64,193.58,25.7643442]
[1739388705279,26.7942442,193.7,193.61,25.7643442]
[1739388705280,25.7643442,193.68,193.61,25.7643442]
[1739388705482,25.7943442,193.67,193.6,25.7643442]
[1739388705690,25.7643442,193.65,193.58,25.7643442]
[1739388706556,25.7643442,193.64,193.57,25.7643442]
[1739388706752,25.7643442,193.62,193.55,25.7643442]
[1739388706958,25.7643442,193.62,193.56,25.7643442]
[1739388707180,25.7643442,193.64,193.57,25.7643442]
[1739388707958,25.7643442,193.63,193.56,25.7643442]
[1739388708192,25.7643442,193.62,193.55,25.7643442]
[1739388708365,25.7643442,193.61,193.55,25.7643442]
[1739388708765,25.7643442,193.63,193.56,25.7643442]
[1739388708966,25.7643442,193.64,193.57,25.7643442]
[1739388709171,25.7643442,193.65,193.59,25.7643442]
[1739388709695,25.7643442,193.66,193.6,25.7643442]
[1739388709993,25.7643442,193.65,193.59,25.7643442]